bitfinex-derivatives/quotes_BNBF0:USTF0_20250413
["timestamp","ask_amount","ask_price","bid_price","bid_amount"]
[1744571896961,0.3414251,585.78,585.27,3.13]
[1744571897165,0.30859928,585.77,585.27,3.13]
[1744571897666,0.3414251,585.78,585.27,3.13]
[1744571897867,0.30873486,585.77,585.27,3.13]
[1744571898366,0.65016579,585.77,585.27,3.13]
[1744571898567,0.6061123,585.76,585.27,3.13]
[1744571898768,0.29737744,585.76,585.27,3.13]
[1744571899066,0.30874382,585.75,585.27,3.13]
[1744571899363,0.30874728,585.74,585.27,3.13]
[1744571899567,0.30874728,585.75,585.27,3.13]
[1744571899768,0.29737744,585.76,585.27,3.13]
[1744571899962,0.30877601,585.75,585.27,3.13]
[1744571900460,0.30877601,585.74,585.27,3.13]
[1744571900667,0.30877601,585.76,585.27,3.13]
[1744571900863,0.34143093,585.77,585.27,3.13]
[1744571901065,0.30877107,585.76,585.27,3.13]
[1744571901565,0.29737871,585.75,585.27,3.13]
[1744571902075,0.30877892,585.74,585.27,3.13]
[1744571902275,0.29737871,585.75,585.27,3.13]
[1744571902476,0.30877953,585.74,585.27,3.13]
[1744571903380,0.30877953,585.73,585.27,3.13]
[1744571903573,0.30877953,585.76,585.27,3.13]
[1744571903777,0.30877953,585.75,585.27,3.13]
[1744571903977,0.30877953,585.74,585.27,3.13]
[1744571904176,0.30877953,585.76,585.27,3.13]
[1744571904379,0.30877953,585.75,585.27,3.13]
[1744571904576,0.29741683,585.73,585.27,3.13]
[1744571904776,0.30877953,585.72,585.27,3.13]
[1744571905580,0.34146591,585.71,585.27,3.13]
[1744571910484,0.29725678,585.7,585.27,3.13]
[1744571912285,0.34146591,585.71,585.27,3.13]
[1744571913488,0.29719459,585.7,585.27,3.13]
[1744571914187,0.3087642,585.69,585.27,3.13]
[1744571914589,0.3087642,585.69,584.45,0.29719459]
[1744571914785,0.3087642,585.69,584.46,0.65622473]
[1744571914986,0.3087642,585.69,584.47,0.65621888]
[1744571915189,0.3087642,585.69,584.48,0.65621302]
[1744571915383,0.3087642,585.69,584.49,0.65620717]
[1744571915589,0.3087642,585.7,584.5,0.65620131]
[1744571915785,0.3087642,585.69,584.51,0.31402852]
[1744571915984,0.3087642,585.7,584.52,0.31402852]
[1744571916187,0.3087642,585.69,584.53,0.31402852]
[1744571916388,0.3087642,585.7,584.51,0.31402852]
[1744571916588,0.34146591,585.71,584.52,0.34216108]
[1744571916885,0.30872573,585.7,584.53,0.31402825]
[1744571917289,0.30872573,585.7,584.54,0.31402825]
[1744571917488,0.30872573,585.7,584.53,0.96202825]
[1744571917688,0.34146591,585.71,584.54,0.31402825]
[1744571918089,0.34146591,585.71,584.53,0.648]
[1744571918289,0.34146591,585.71,584.54,1.27600745]
[1744571918489,0.34146591,585.71,584.55,0.65615097]
[1744571918689,0.34146591,585.71,584.56,0.65614512]
[1744571918890,0.34146591,585.71,584.57,0.31400745]
[1744571919190,0.34146591,585.71,584.58,0.34212597]
[1744571919390,0.34146591,585.71,584.59,0.31400745]
[1744571919590,0.34146591,585.71,584.6,0.34211426]
[1744571919886,0.34146591,585.71,584.61,0.31400745]
[1744571920486,0.34146591,585.71,584.62,0.34210256]
[1744571920686,0.34146591,585.71,584.63,0.31400745]
[1744571920886,0.34146591,585.71,584.64,0.34209085]
[1744571921090,0.34146591,585.71,584.65,0.31400745]
[1744571921291,0.34146591,585.71,584.66,0.34207915]
[1744571921490,0.34146591,585.71,584.67,0.31400745]
[1744571921689,0.34146591,585.71,584.68,0.34206745]
[1744571921889,0.34146591,585.71,584.69,0.31400745]
[1744571922291,0.34146591,585.71,584.7,0.34205575]
[1744571922489,0.34146591,585.71,584.71,0.31400745]
[1744571923291,0.34146591,585.71,584.72,0.34204405]
[1744571923492,0.34146591,585.71,584.73,0.31400745]
[1744571924593,0.34146591,585.71,584.74,0.34203235]
[1744571924788,0.34146591,585.71,584.75,0.31400745]
[1744571925493,0.224,585.7,584.75,0.31400745]
[1744571925993,0.224,585.7,584.74,0.34203235]
[1744571926194,0.224,585.7,584.75,0.31395667]
[1744571926493,0.224,585.7,584.76,0.34202065]
[1744571926794,0.224,585.7,584.77,0.31395667]
[1744571927394,0.224,585.7,584.77,0.65597147]
[1744571927595,0.224,585.7,584.78,0.31395667]
[1744571929194,0.224,585.7,584.77,0.3420148]
[1744571929395,0.224,585.7,584.78,0.31395797]
[1744571930795,0.224,585.7,584.77,0.3420148]
[1744571930991,0.224,585.7,584.78,0.31395797]
[1744571931992,0.224,585.7,584.78,0.82195797]
[1744571932196,0.224,585.7,584.79,0.31395797]
[1744571933897,0.224,585.7,584.78,0.508]
[1744571934097,0.224,585.7,584.79,0.31395801]
[1744571935999,0.224,585.7,584.79,1.01695801]
[1744571936298,0.224,585.7,584.8,0.31395801]
[1744571936998,0.224,585.7,584.8,0.72195801]
[1744571937200,0.224,585.7,584.81,0.31394588]
[1744571938201,0.224,585.7,584.82,0.34198556]
[1744571938398,0.224,585.7,584.83,0.31394588]
[1744571938600,0.224,585.7,584.84,0.34197387]
[1744571938801,0.224,585.7,584.85,0.31389097]
[1744571939102,0.224,585.7,584.86,0.34196217]
[1744571939402,0.224,585.7,584.87,0.31389097]
[1744571939603,0.224,585.7,584.88,0.34195048]
[1744571939796,0.224,585.7,584.89,0.31389097]
[1744571940002,0.224,585.7,584.9,0.34193879]
[1744571940401,0.224,585.7,584.91,0.31389875]
[1744571940803,0.224,585.7,584.92,0.3419271]
[1744571940996,0.224,585.7,584.93,0.31389875]
[1744571941297,0.224,585.7,584.92,0.3419271]
[1744571941503,0.224,585.7,584.93,0.31389899]
[1744571942797,0.224,585.7,584.92,0.3419271]
[1744571942996,0.224,585.7,584.93,0.3138997]
[1744571944398,0.224,585.7,584.92,0.3419271]
[1744571944600,0.224,585.7,584.93,0.31390005]
[1744571946405,0.224,585.7,584.93,0.75090005]
[1744571946703,0.224,585.7,584.94,0.31390005]
[1744571947103,0.224,585.7,584.95,0.562]
[1744571947303,0.224,585.7,584.96,0.31390005]
[1744571947500,0.224,585.7,584.95,1.053]
[1744571947704,0.224,585.7,584.96,0.31389121]
[1744571949000,0.224,585.7,584.95,1.053]
[1744571949203,0.224,585.7,584.96,0.31389307]
[1744571949705,0.224,585.7,584.95,1.053]
[1744571949905,0.224,585.7,584.96,0.31385439]
[1744571950302,0.224,585.7,584.97,0.34189787]
[1744571950505,0.224,585.7,584.98,0.31385439]
[1744571950701,0.224,585.7,584.97,0.34189787]
[1744571950908,0.224,585.7,584.98,0.3138571]
[1744571951307,0.224,585.7,584.98,0.65574913]
[1744571951503,0.224,585.7,584.98,0.34189203]
[1744571956309,0.224,585.7,584.99,0.3138969]
[1744571958306,0.224,585.7,584.98,0.34189203]
[1744571960111,0.224,585.7,584.99,0.494]
[1744571962511,0.224,585.7,585.0,0.31389091]
[1744571963008,0.224,585.7,585.01,0.31389166]
[1744571963208,0.224,585.7,585.0,0.31389166]
[1744571964617,0.224,585.7,585.01,0.31389326]
[1744571964812,0.224,585.7,585.0,0.31389326]
[1744571965015,0.224,585.7,585.01,0.31389326]
[1744571965318,0.224,585.7,585.02,0.31389326]
[1744571965520,0.224,585.7,585.0,0.31389326]
[1744571966119,0.224,585.7,584.99,0.494]
[1744571966320,0.224,585.7,585.0,0.31389198]
[1744571967520,0.224,585.7,585.01,0.412]
[1744571967720,0.224,585.7,585.02,0.31389198]
[1744571970726,0.224,585.7,585.01,0.412]
[1744571971022,0.224,585.7,585.02,0.31389861]
[1744571972429,0.224,585.7,585.01,0.412]
[1744571974830,0.224,585.7,585.02,0.494]
[1744571977532,0.224,585.7,585.02,1.014]
[1744571978031,0.224,585.7,585.02,1.666]
[1744571981235,0.224,585.7,585.02,2.076]
[1744571994646,0.224,585.7,585.02,2.687]
[1744571998653,0.224,585.7,585.03,0.31394093]
[1744571998948,0.224,585.7,585.04,0.31393426]
[1744571999452,0.224,585.7,585.05,0.31393426]
[1744571999652,0.224,585.7,585.02,2.193]
[1744571999653,0.224,585.7,585.03,0.31393426]
[1744572000052,0.224,585.7,585.02,2.193]
[1744572000247,0.224,585.7,585.03,0.31392352]
[1744572001654,0.224,585.7,585.03,0.86792352]
[1744572001854,0.224,585.7,585.04,0.31392352]
[1744572002655,0.224,585.7,585.03,0.554]
[1744572008157,0.224,585.7,585.03,1.072]
[1744572008863,0.30858148,585.69,585.03,1.072]
[1744572009358,1.29339298,586.5,585.03,1.072]
[1744572009563,0.29732154,585.68,585.03,1.072]
[1744572009761,0.30855398,585.67,585.03,1.072]
[1744572009958,0.30856565,586.47,585.03,1.072]
[1744572010161,0.34103504,586.45,585.03,1.072]
[1744572010358,0.30856237,586.44,585.03,1.072]
[1744572010558,0.30856237,586.43,585.03,1.072]
[1744572010758,1.29339298,586.27,585.03,1.718]
[1744572011257,0.30853772,586.26,585.03,2.252]
[1744572011559,0.3411572,586.24,585.03,2.252]
[1744572011764,0.30853772,586.23,585.03,2.252]
[1744572011963,0.34117466,586.21,585.03,2.252]
[1744572012564,0.224,586.2,585.03,2.252]
[1744572012765,1.29339298,586.19,585.03,2.252]
[1744572013064,0.34119212,586.18,585.03,2.252]
[1744572013366,0.34119212,586.18,585.03,2.776]
[1744572014860,0.29736854,586.17,585.03,2.776]
[1744572015067,0.34120958,586.15,585.03,2.776]
[1744572015466,0.30853014,586.14,585.03,2.776]
[1744572016865,0.34122705,586.12,585.03,2.776]
[1744572017065,0.30853014,586.11,585.03,2.776]
[1744572017265,0.34124451,586.09,585.03,2.776]
[1744572017467,0.30853014,586.08,585.03,2.776]
[1744572017867,0.29736092,586.07,585.03,2.776]
[1744572018167,0.30853014,586.06,585.03,2.776]
[1744572018370,0.34127363,586.04,585.03,2.776]
[1744572018668,0.30853014,586.03,585.03,2.776]
[1744572018869,0.30853014,586.02,585.03,2.776]
[1744572019069,0.34129692,586.0,585.03,2.776]
[1744572019470,0.30853014,585.99,585.03,2.776]
[1744572019669,0.34130857,585.98,585.03,2.776]
[1744572019968,0.30853014,585.97,585.03,2.776]
[1744572020170,0.34132022,585.96,585.03,2.776]
[1744572020370,0.30853014,585.95,585.03,2.776]
[1744572020765,0.34133187,585.94,585.03,2.776]
[1744572020970,0.30853014,585.93,585.03,2.776]
[1744572021266,0.34134352,585.92,585.03,2.776]
[1744572021567,0.30853014,585.91,585.03,2.776]
[1744572021872,0.34135518,585.9,585.03,2.776]
[1744572022069,0.30853014,585.89,585.03,2.776]
[1744572022471,0.34136683,585.88,585.03,2.776]
[1744572022667,0.30853014,585.87,585.03,2.776]
[1744572022867,0.34137848,585.86,585.03,2.776]
[1744572023070,0.30838977,585.85,585.03,2.776]
[1744572023266,0.34139014,585.84,585.03,2.776]
[1744572023474,0.30838977,585.83,585.03,2.776]
[1744572024271,0.34140179,585.82,585.03,2.776]
[1744572024471,0.30838977,585.81,585.03,2.776]
[1744572024766,0.34141345,585.8,585.03,2.776]
[1744572024967,0.30838977,585.79,585.03,2.776]
[1744572025673,0.3414251,585.78,585.03,2.776]
[1744572025871,0.30838977,585.77,585.03,2.776]
[1744572026073,0.34143676,585.76,585.03,2.776]
[1744572026373,0.30840955,585.75,585.03,2.776]
[1744572027574,0.29742573,585.74,585.03,2.776]
[1744572027775,0.30840955,585.73,585.03,2.776]
[1744572028272,0.34146008,585.72,585.03,2.776]
[1744572028475,0.30840955,585.71,585.03,2.776]
[1744572028677,0.34147174,585.7,585.03,2.776]
[1744572028877,0.30840955,585.69,585.03,2.776]
[1744572030477,0.29742573,585.68,585.03,2.776]
[1744572030681,0.30840955,585.67,585.03,2.776]
[1744572030876,0.29742573,585.68,585.03,2.776]
[1744572031080,0.3083625,585.67,585.03,2.776]
[1744572032382,0.34147174,585.7,585.03,2.776]
[1744572032579,0.30836755,585.69,585.03,2.776]
[1744572033587,0.29742573,585.68,585.03,2.776]
[1744572033886,0.30836755,585.67,585.03,2.776]
[1744572034081,0.30833765,585.66,585.03,2.776]
[1744572034287,0.30833765,585.65,585.03,2.776]
[1744572034586,0.30833765,585.64,585.03,2.776]
[1744572034781,0.30833765,585.67,585.03,2.776]
[1744572035387,0.30833765,585.69,585.03,2.776]
[1744572035589,0.29742827,585.66,585.03,2.776]
[1744572035789,0.30828943,585.65,585.03,2.776]
[1744572037193,0.29742827,585.66,585.03,2.776]
[1744572037488,0.64972059,585.65,585.03,2.776]
[1744572037684,0.3082197,585.64,585.03,2.776]
[1744572038590,0.8629726,585.63,585.03,2.776]
[1744572038788,0.34151839,585.62,585.03,2.776]
[1744572038989,0.30816696,585.61,585.03,2.776]
[1744572040286,0.34151839,585.62,585.03,2.776]
[1744572041491,0.29746768,585.61,585.03,2.776]
[1744572042091,0.34153005,585.6,585.03,2.776]
[1744572043090,0.34153005,585.6,585.03,3.202]
[1744572045594,0.29737109,585.59,585.03,3.202]
[1744572047294,0.34153005,585.6,585.03,3.202]
[1744572048594,0.29734314,585.59,585.03,3.202]
[1744572050200,0.34153005,585.6,585.03,3.202]
[1744572050499,0.29746641,585.58,585.03,3.202]
[1744572052398,0.52146641,585.58,585.03,3.202]
[1744572053399,0.30811898,585.57,585.03,3.202]
[1744572054495,0.29746641,585.56,585.03,3.202]
[1744572054692,0.30811898,585.55,585.03,3.202]
[1744572056500,0.29747149,585.54,585.03,3.202]
[1744572056795,0.30811898,585.53,585.03,3.202]
[1744572059398,0.224,585.58,585.03,3.202]
[1744572059599,0.64959783,585.57,585.03,3.202]
[1744572059800,0.64960366,585.56,585.03,3.202]
[1744572060003,0.30805028,585.55,585.03,3.202]
[1744572060503,0.29748675,585.54,585.03,3.202]
[1744572060703,0.30805028,585.53,585.03,3.202]
[1744572062603,0.30805028,585.55,585.03,3.202]
[1744572062902,0.30805028,585.54,585.03,3.202]
[1744572063097,0.30805028,585.55,585.03,3.202]
[1744572063298,0.29751473,585.54,585.03,3.202]
[1744572063799,0.64960514,585.53,585.03,3.202]
[1744572063999,0.64961097,585.52,585.03,3.202]
[1744572064304,0.64961681,585.51,585.03,3.202]
[1744572064500,0.64962264,585.5,585.03,3.202]
[1744572064703,0.64962848,585.49,585.03,3.202]
[1744572064898,0.64963431,585.48,585.03,3.202]
[1744572065100,0.30803426,585.47,585.03,3.202]
[1744572065499,0.34161172,585.46,585.03,3.202]
[1744572065806,0.30803426,585.45,585.03,3.202]
[1744572066100,0.60556552,585.45,585.03,3.202]
[1744572066305,0.60556552,585.45,585.03,0.518]
[1744572066306,0.30803426,585.44,585.03,0.518]
[1744572066808,0.29753126,585.45,585.03,0.518]
[1744572067003,0.30801608,585.44,585.03,0.518]
[1744572068306,0.30801608,585.44,583.88,1.08571932]
[1744572068506,0.34161172,585.46,583.9,0.3425244]
[1744572068507,0.30801608,585.45,583.9,0.3425244]
[1744572068808,0.34161172,585.46,583.91,0.31421792]
[1744572069005,0.2976445,585.45,583.92,0.31421792]
[1744572069203,0.2976445,585.45,583.93,0.31421792]
[1744572069404,0.2976445,585.45,583.94,0.31421792]
[1744572069604,0.2976445,585.45,583.95,0.31421792]
[1744572069802,0.2976445,585.45,583.96,0.31421792]
[1744572070001,0.2976445,585.45,583.98,0.34247748]
[1744572070302,0.2976445,585.45,583.99,0.31421792]
[1744572070505,0.2976445,585.45,584.01,0.34245988]
[1744572070705,0.30807186,585.44,584.02,0.31421792]
[1744572070907,0.2976445,585.45,584.04,0.34244229]
[1744572071107,0.2976445,585.45,584.05,0.31421792]
[1744572071309,0.34161172,585.46,584.06,0.31421792]
[1744572071504,0.34161172,585.46,584.07,0.31421792]
[1744572071703,0.34161172,585.46,584.08,0.31421792]
[1744572071907,0.34161172,585.46,584.09,0.31421792]
[1744572072107,0.34161172,585.46,584.1,0.31421792]
[1744572072304,0.34161172,585.46,584.12,0.34239539]
[1744572072507,0.34161172,585.46,584.13,0.31421792]
[1744572072711,0.34161172,585.46,584.15,0.34237781]
[1744572072904,0.34161172,585.46,584.16,0.31421792]
[1744572073105,0.34161172,585.46,584.18,0.34236023]
[1744572073305,0.34161172,585.46,584.19,0.31421792]
[1744572073505,0.34161172,585.46,584.21,0.34234265]
[1744572073707,0.224,585.45,584.22,0.31421792]
[1744572073913,0.224,585.45,584.24,0.34232507]
[1744572074211,0.224,585.45,584.25,0.31421792]
[1744572074712,0.224,585.45,584.26,0.34231335]
[1744572075212,0.224,585.45,584.27,0.31411748]
[1744572075413,0.224,585.45,584.28,0.34230163]
[1744572075612,0.224,585.45,584.29,0.31411748]
[1744572076313,0.224,585.45,584.28,0.34230163]
[1744572076513,0.224,585.45,584.29,0.31411203]
[1744572076814,0.224,585.45,584.3,0.31411203]
[1744572077013,0.224,585.45,584.31,0.31411203]
[1744572077215,0.224,585.45,584.32,0.65639023]
[1744572077413,0.224,585.45,584.33,0.65638437]
[1744572077612,0.224,585.45,584.34,0.31411203]
[1744572077808,0.224,585.45,584.33,0.34227234]
[1744572078108,0.224,585.45,584.34,0.314105]
[1744572078409,0.224,585.45,584.35,0.34226063]
[1744572078613,0.224,585.45,584.36,0.314105]
[1744572078815,0.224,585.45,584.37,0.34224891]
[1744572079010,0.224,585.45,584.38,0.314105]
[1744572079210,0.224,585.45,584.39,0.3422372]
[1744572079414,0.224,585.45,584.4,0.314105]
[1744572079612,0.224,585.45,584.41,0.34222549]
[1744572079809,0.224,585.45,584.42,0.314105]
[1744572080009,0.224,585.45,584.43,0.34221378]
[1744572080213,0.224,585.45,584.44,0.314105]
[1744572080413,0.224,585.45,584.45,0.34220207]
[1744572080614,0.224,585.45,584.46,0.314105]
[1744572080914,0.224,585.45,584.47,0.34219036]
[1744572081115,0.224,585.45,584.48,0.314105]
[1744572081309,0.224,585.45,584.49,0.34217865]
[1744572081513,0.224,585.45,584.5,0.314105]
[1744572081716,0.224,585.45,584.51,0.34216694]
[1744572081917,0.224,585.45,584.52,0.314105]
[1744572084319,0.224,585.45,584.53,0.31408141]
[1744572084518,0.224,585.45,584.52,0.31408141]
[1744572085823,0.224,585.45,584.52,0.94908141]
[1744572086122,0.224,585.45,584.53,0.31408141]
[1744572090626,0.224,585.45,584.54,0.31406797]
[1744572090822,0.224,585.45,584.53,0.31406797]
[1744572091024,0.224,585.45,584.54,0.31406797]
[1744572091221,0.224,585.45,584.55,0.31406797]
[1744572091423,0.224,585.45,584.53,0.31406797]
[1744572095130,0.224,585.45,584.52,0.635]
[1744572095330,0.224,585.45,584.53,0.31408498]
[1744572095731,0.224,585.45,584.53,0.84908498]
[1744572095933,0.224,585.45,584.54,0.31408498]
[1744572097335,0.224,585.45,584.54,0.95208498]
[1744572097535,0.224,585.45,584.55,0.31408498]
[1744572101737,0.224,585.45,584.55,0.93908498]
[1744572102037,0.224,585.45,584.56,0.31408498]
[1744572103340,0.224,585.45,584.55,0.625]
[1744572103539,0.224,585.45,584.56,0.31408315]
[1744572106636,0.224,585.45,584.57,0.3140713]
[1744572106840,0.224,585.45,584.56,0.3140713]
[1744572112846,0.224,585.45,584.55,0.625]
[1744572113044,0.224,585.45,584.56,0.31410585]
[1744572113745,0.224,585.45,584.56,1.00510585]
[1744572113946,0.224,585.45,584.57,0.31410585]
[1744572115948,0.224,585.45,584.58,0.531]
[1744572116148,0.224,585.45,584.59,0.31410585]
[1744572118856,0.224,585.45,584.6,0.551]
[1744572119151,0.224,585.45,584.61,0.31410585]
[1744572126359,0.224,585.45,584.62,0.444]
[1744572126559,0.224,585.45,584.63,0.31410585]
[1744572127159,0.224,585.45,584.64,0.31409448]
[1744572127355,0.224,585.45,584.63,0.31409448]
[1744572127558,0.224,585.45,584.64,0.31409448]
[1744572127859,0.224,585.45,584.65,0.31409448]
[1744572128056,0.224,585.45,584.63,0.31409448]
[1744572128362,0.224,585.45,584.64,0.31409448]
[1744572128661,0.224,585.45,584.65,0.31409448]
[1744572128861,0.224,585.45,584.63,0.31409448]
[1744572129162,0.224,585.45,584.64,0.31409448]
[1744572129356,0.224,585.45,584.63,0.31409448]
[1744572129757,0.224,585.45,584.62,0.444]
[1744572129961,0.224,585.45,584.63,0.31406162]
[1744572130461,0.224,585.45,584.64,0.585]
[1744572130663,0.224,585.45,584.65,0.31406162]
[1744572131159,0.224,585.45,584.65,0.85106162]
[1744572131358,0.224,585.45,584.65,0.537]
[1744572132265,0.224,585.45,584.66,0.31405323]
[1744572132461,0.224,585.45,584.65,0.537]
[1744572133065,0.224,585.45,584.66,0.31406382]
[1744572135169,0.224,585.45,584.67,0.31403592]
[1744572135471,0.224,585.45,584.66,0.31403592]
[1744572135766,0.224,585.45,584.67,0.78103592]
[1744572135965,0.224,585.45,584.68,0.31403592]
[1744572142172,0.224,585.45,584.68,0.97303592]
[1744572142375,0.224,585.45,584.69,0.31403592]
[1744572142576,0.224,585.45,584.68,0.659]
[1744572142776,0.224,585.45,584.69,0.31404561]
[1744572143076,0.224,585.45,584.7,0.536]
[1744572143275,0.224,585.45,584.71,0.31404561]
[1744572150676,0.224,585.45,584.7,1.077]
[1744572150880,0.224,585.45,584.71,0.31404593]
[1744572152580,0.224,585.45,584.7,1.077]
[1744572155079,0.224,585.45,584.7,0.541]
[1744572158782,0.224,585.45,584.71,0.641]
[1744572159587,0.224,585.45,584.72,0.66]
[1744572161589,0.224,585.45,584.73,0.31407046]
[1744572162086,0.224,585.45,584.72,0.66]
[1744572162290,0.224,585.45,584.73,0.31407117]
[1744572162488,0.224,585.45,584.72,0.66]
[1744572163091,0.224,585.45,584.73,0.31407848]
[1744572163392,0.224,585.45,584.74,0.604]
[1744572163590,0.224,585.45,584.75,0.31407848]
[1744572163792,0.224,585.45,584.76,0.31407171]
[1744572163985,0.224,585.45,584.75,0.90807171]
[1744572164189,0.224,585.45,584.76,0.31407171]
[1744572166693,0.224,585.45,584.75,0.594]
[1744572169798,0.224,585.45,584.76,0.3140128]
[1744572169997,0.224,585.45,584.75,0.594]
[1744572170200,0.224,585.45,584.76,0.31400012]
[1744572170897,0.224,585.45,584.75,0.594]
[1744572175196,0.224,585.45,584.76,0.577]
[1744572180509,0.224,585.45,584.77,0.694]
[1744572180709,0.224,585.45,584.78,0.3140048]
[1744572180910,0.224,585.45,584.79,0.31400435]
[1744572181205,0.224,585.45,584.8,0.31400435]
[1744572181505,0.224,585.45,584.81,0.31400435]
[1744572181704,0.224,585.45,584.82,0.31400435]
[1744572182005,0.224,585.45,584.83,0.31400435]
[1744572182208,0.224,585.45,584.78,0.31400435]
[1744572182407,0.224,585.45,584.79,0.31400435]
[1744572182603,0.224,585.45,584.78,0.31400435]
[1744572183710,0.224,585.45,584.77,0.694]
[1744572183911,0.224,585.45,584.78,0.31400417]
[1744572185311,0.224,585.45,584.77,0.694]
[1744572185511,0.224,585.45,584.78,0.3140044]
[1744572186910,0.224,585.45,584.77,0.694]
[1744572187114,0.224,585.45,584.78,0.31400419]
[1744572187314,0.224,585.45,584.77,0.694]
[1744572188012,0.224,585.45,584.77,1.142]
[1744572188416,0.224,585.45,584.77,1.655]
[1744572192711,0.224,585.45,584.78,0.31403693]
[1744572193016,0.224,585.45,584.77,2.236]
[1744572193216,0.224,585.45,584.78,0.31404516]
[1744572193617,0.224,585.45,584.77,2.236]
[1744572195219,0.224,585.45,584.78,0.31406915]
[1744572195421,0.224,585.45,584.77,2.236]
[1744572202425,0.224,585.45,584.77,3.027]
[1744572208127,0.224,585.45,584.78,0.31403759]
[1744572210229,0.224,585.45,584.78,0.97903759]
[1744572210429,0.224,585.45,584.79,0.31403759]
[1744572210627,0.224,585.45,584.8,0.31400626]
[1744572210829,0.224,585.45,584.79,0.31400626]
[1744572211130,0.224,585.45,584.8,0.31400626]
[1744572211329,0.224,585.45,584.79,0.31400626]
[1744572211529,0.224,585.45,584.8,0.31400626]
[1744572211729,0.224,585.45,584.78,0.665]
[1744572212030,0.224,585.45,584.78,1.15]
[1744572212231,0.224,585.45,584.78,1.77]
[1744572216637,0.224,585.45,584.79,0.31395792]
[1744572216936,0.224,585.45,584.78,1.77]
[1744572217137,0.224,585.45,584.79,0.31395791]
[1744572217537,0.224,585.45,584.78,1.77]
[1744572219237,0.224,585.45,584.79,0.3139565]
[1744572221838,0.224,585.45,584.79,0.9999565]
[1744572222031,0.224,585.45,584.8,0.3139565]
[1744572226742,0.224,585.45,584.79,0.686]
[1744572228147,0.224,585.45,584.79,1.445]
[1744572230149,0.224,585.45,584.79,1.877]
[1744572231052,0.224,585.45,584.79,2.403]
[1744572233458,0.224,585.45,584.8,0.31395485]
[1744572234758,0.224,585.45,584.81,0.31395867]
[1744572234956,0.224,585.45,584.82,0.31395867]
[1744572235155,0.224,585.45,584.8,0.31395867]
[1744572235350,0.224,585.45,584.81,0.31395867]
[1744572235555,0.224,585.45,584.8,0.31395867]
[1744572235753,0.224,585.45,584.81,0.31395867]
[1744572235958,0.224,585.45,584.8,0.31395867]
[1744572236154,0.224,585.45,584.81,0.31395867]
[1744572236353,0.224,585.45,584.8,0.31395867]
[1744572236557,0.224,585.45,584.81,0.31395867]
[1744572236757,0.224,585.45,584.8,0.31395867]
[1744572236954,0.224,585.45,584.81,0.31395867]
[1744572237153,0.224,585.45,584.8,0.31395867]
[1744572237356,0.224,585.45,584.81,0.31395867]
[1744572237558,0.224,585.45,584.82,0.31395867]
[1744572237858,0.224,585.45,584.79,1.717]
[1744572238055,0.224,585.45,584.8,0.31396225]
[1744572238354,0.224,585.45,584.8,1.00696225]
[1744572238554,0.224,585.45,584.81,0.31396225]
[1744572241663,0.224,585.45,584.8,0.693]
[1744572243764,0.224,585.45,584.81,0.3139549]
[1744572245566,0.224,585.45,584.8,0.693]
[1744572247665,0.224,585.45,584.8,1.303]
[1744572248369,0.224,585.45,584.8,2.121]
[1744572251773,0.224,585.45,584.81,0.31399383]
[1744572252073,0.224,585.45,584.8,2.121]
[1744572252275,0.224,585.45,584.81,0.92899011]
[1744572252474,0.224,585.45,584.82,0.31399011]
[1744572256079,0.224,585.45,584.83,0.605]